[Event "Biel Challengers Blitz 2024"]
[White "Donchenko,Alexander"]
[Black "Maurizzi,Marc`Andria"]
[Site "Biel"]
[Round "10.2"]
[Annotator "TA"]
[Result "1/2-1/2"]
[Date "2024.07.21"]
[WhiteElo "2639"]
[BlackElo "2610"]
[PlyCount "127"]
[TimeControl "180+2"]

{[%evp 69,127,0,0,0,0,0,0,-356,0,-294,0,-282,0,0,0,0,0,0,0,0,0,0,0,0,0,0,0,0,8,8,8,0,0,0,0,0,0,0,0,0,0,0,29972,0,0,0,8,0,0,0,0,0,0,0,0,0,0,0,10514,-29988]} 1. c4 {[%emt 0:0:1]} e5 {[%emt 0:0:4]} 2. Nc3 {[%emt 0:0:1]} Nf6 {[%emt 0:0:3]} 3. Nf3 {[%emt 0:0:2]} Nc6 {[%emt 0:0:1]} 4. e3 {[%emt 0:0:0]} Bb4 {[%emt 0:0:1]} 5. Qc2 {[%emt 0:0:1]} O-O {[%emt 0:0:5]} 6. Nd5 {[%emt 0:0:2]} Re8 {[%emt 0:0:1]} 7. Ng5 {[%emt 0:0:1]} g6 {[%emt 0:0:6]} 8. Nxf6+ {[%emt 0:0:2]} Qxf6 {[%emt 0:0:2]} 9. Ne4 {[%emt 0:0:1]} Qg7 {[%emt 0:0:15]} 10. a3 {[%emt 0:0:4]} Be7 {[%emt 0:0:5]} 11. Be2 {[%emt 0:0:7]} d6 {[%emt 0:0:3]} 12. b4 {[%emt 0:0:5]} Be6 {[%emt 0:0:20]} 13. Bb2 {[%emt 0:0:3]} Rad8 {[%emt 0:0:2]} 14. h4 {[%emt 0:0:8]} f5 {[%emt 0:0:6]} 15. Nc3 {[%emt 0:0:12]} Bf6 {[%emt 0:0:1]} 16. Nd5 {[%emt 0:0:4]} Bxd5 {[%emt 0:0:1]} 17. cxd5 {[%emt 0:0:1]} Ne7 {[%emt 0:0:1]} 18. Qxc7 {[%emt 0:0:6]} e4 {[%emt 0:0:2]} 19. Bxf6 {[%emt 0:0:7]} Qxf6 {[%emt 0:0:2]} 20. Qc3 {[%emt 0:0:3]} Kg7 {[%emt 0:0:10]} 21. h5 {[%emt 0:0:29]} Qxc3 {[%emt 0:0:2]} 22. dxc3 {[%emt 0:0:1]} Nxd5 {[%emt 0:0:1]} 23. c4 {[%emt 0:0:3]} Nf6 {[%emt 0:0:1]} 24. hxg6 {[%emt 0:0:5]} hxg6 {[%emt 0:0:1]} 25. O-O-O {[%emt 0:0:9]} d5 {[%emt 0:0:16]} 26. cxd5 {[%emt 0:0:9]} Nxd5 {[%emt 0:0:6]} 27. Kb2 {[%emt 0:0:2]} Nf6 {[%emt 0:0:4]} 28. a4 {[%emt 0:0:16]} Kf7 {[%emt 0:0:2]} 29. a5 {[%emt 0:0:3]} Rxd1 {[%emt 0:0:6]} 30. Rxd1 {[%emt 0:0:2]} Rh8 {[%emt 0:0:1]} 31. Rc1 {[%emt 0:0:4]} Rd8 {[%emt 0:0:8]} 32. Rc7+ {[%emt 0:0:9]} Rd7 {[%emt 0:0:0]} 33. Rxd7+ {[%emt 0:0:7]} Nxd7 {[%emt 0:0:1]} 34. Kc3 {[%emt 0:0:1]} Ke6 {[%emt 0:0:1]} 35. Kd4 {[%emt 0:0:2]} Kd6 {[%emt 0:0:2]} 36. Bb5 {[%emt 0:0:28]} Ne5 {[%emt 0:0:7]} 37. Be8 {[%emt 0:0:1]} g5 {[%emt 0:0:5]} 38. Bh5 $2 {[%emt 0:0:15][%mdl 8192]} (38. Bb5 $11 {und Weiss muss sich keine Sorgen machen.} )Nc6+ $2 {[%emt 0:0:3]} ({Vorzuziehen ist} 38... g4 $1 $19 {Und ...Nd3 würde nun gewinnen.} 39. b5 b6 40. axb6 axb6 )39. Kc4 $2 {[%emt 0:0:3][%mdl 8192]} (39. Kc3 $1 $11 )Ne5+ $2 {[%emt 0:0:1]} ({Günstiger ist} 39... g4 $1 $19 {Zielt auf ...Ne5+ ab.} 40. Kc3 Ne5 )40. Kc3 $2 {[%emt 0:0:2][%mdl 8192] [#]} (40. Kd4 $11 {und Weiss ist OK.} )Nc6 $2 {[%emt 0:0:23]} (40... g4 $1 $19 41. b5 Nd3 )41. Bg6 {[%emt 0:0:21]} Ke5 {[%emt 0:0:2]} 42. g3 {[%emt 0:0:4]} Kf6 {[%emt 0:0:9]} 43. Bh5 $1 {[%emt 0:0:2]} Ke5 {[%emt 0:0:4]} 44. Be2 {[%emt 0:0:2]} f4 {[%emt 0:0:12]} 45. exf4+ $1 {[%emt 0:0:6]} gxf4 {[%emt 0:0:0]} 46. gxf4+ {[%emt 0:0:1]} Kxf4 {[%emt 0:0:1]} 47. Kc4 {[%emt 0:0:1]} Ne5+ {[%emt 0:0:17]} 48. Kd4 {[%emt 0:0:1]} Nc6+ {[%emt 0:0:27]} 49. Kc5 {[%emt 0:0:1]} Ne5 {[%emt 0:0:1]} 50. b5 {[%emt 0:0:10]} Nd3+ {[%emt 0:0:10]} 51. Kd6 {[%emt 0:0:1]} Nxf2 {[%emt 0:0:4]} 52. Kc7 {[%emt 0:0:0]} b6 $1 {[%emt 0:0:9]} (52... Ke3 $2 53. Bh5 (53. Bf1 Nd3 $11 )Kf4 54. Kxb7 $16 )53. axb6 {[%emt 0:0:11]} axb6 {[%emt 0:0:0]} 54. Kxb6 {[%emt 0:0:1]} Nd3 {[%emt 0:0:1]} 55. Kc7 {[%emt 0:0:3]} Nb4 $2 {[%emt 0:0:2][%mdl 8192] [#]} (55... Ke3 $11 )56. Bc4 $2 {[%emt 0:0:2]} (56. Kd6 $1 {setzt Matt} Ke3 57. Bf1 Kf2 58. Bc4 Nc2 59. b6 e3 60. b7 e2 61. Bxe2 (61. b8=B $2 {ist das falsche Schlagen.} e1=Q $19 )Kxe2 62. b8=Q (62. b8=B Kf3 $11 ))Ke5 $11 {[%emt 0:0:1]} 57. b6 {[%emt 0:0:1]} Kd4 {[%emt 0:0:1]} 58. b7 {[%emt 0:0:1]} (58. Bb5 $5 Nd5+ $8 59. Kc6 Nxb6 60. Kxb6 $11 )Kxc4 {[%emt 0:0:2]} 59. Kb6 $1 {[%emt 0:0:3]} Nd5+ {[%emt 0:0:2]} 60. Ka6 {[%emt 0:0:5]} (60. Kc6 $5 Nb4+ $8 61. Kb6 Nd5+ 62. Kc6 Nb4+ 63. Kb6 $11 )Nb4+ {[%emt 0:0:8]} 61. Kb6 {[%emt 0:0:1]} Nd5+ {[%emt 0:0:1]} 62. Kc6 {[%emt 0:0:3]} Nb4+ {[%emt 0:0:3]} 63. Kb6 $1 {[%emt 0:0:2]} Kd4 $2 {[%emt 0:0:11][%mdl 8192]} (63... Nd5+ $11 64. Ka6 Nb4+ 65. Kb6 )64. Kc7 $4 {[%mdl 8192]} ({Nicht} 64. b8=R Ke3 $11 )(64. Kb5 $18 Nd3 65. b8=Q (65. b8=R Nf2 $11 ))1/2-1/2

[Event "Biel Challengers Blitz 2024"]
[White "Salem,A.R. Saleh"]
[Black "Vaishali,Rameshbabu"]
[Site "Biel"]
[Round "10.3"]
[Annotator "TA"]
[Result "1-0"]
[Date "2024.07.21"]
[WhiteElo "2638"]
[BlackElo "2489"]
[PlyCount "123"]
[TimeControl "180+2"]

{[%evp 51,123,52,75,20,27,29,206,209,210,17,254,245,242,254,376,392,393,391,405,115,111,93,152,136,138,135,135,137,112,89,160,155,272,272,259,122,375,371,370,349,333,333,326,325,314,197,185,106,170,100,140,147,325,318,447,429,538,575,441,558,522,435,710,710,1621,1842,2873,2451,5281,4493,5775,5266,5065,4750]} 1. d4 {[%emt 0:0:0]} Nf6 {[%emt 0:0:1]} 2. c4 {[%emt 0:0:3]} c5 {[%emt 0:0:2]} 3. d5 {[%emt 0:0:1]} b5 {[%emt 0:0:1]} 4. cxb5 {[%emt 0:0:1]} a6 {[%emt 0:0:1]} 5. bxa6 {[%emt 0:0:1]} Bxa6 {[%emt 0:0:2]} 6. Nc3 {[%emt 0:0:2]} d6 {[%emt 0:0:2]} 7. e4 {[%emt 0:0:1]} Bxf1 {[%emt 0:0:2]} 8. Kxf1 {[%emt 0:0:1]} g6 {[%emt 0:0:1]} 9. Nf3 {[%emt 0:0:1]} Bg7 {[%emt 0:0:1]} 10. g3 {[%emt 0:0:0]} O-O {[%emt 0:0:2]} 11. Kg2 {[%emt 0:0:1]} Nbd7 {[%emt 0:0:1]} 12. a4 {[%emt 0:0:2]} Qa5 {[%emt 0:0:3]} 13. Qe2 {[%emt 0:0:4]} Rfb8 {[%emt 0:0:17]} 14. Ra3 {[%emt 0:0:1]} Ne8 {[%emt 0:0:7]} 15. Nb5 {[%emt 0:0:8]} Nc7 {[%emt 0:0:4]} 16. Nxc7 {[%emt 0:0:8]} Qxc7 {[%emt 0:0:1]} 17. b3 {[%emt 0:0:1]} Rb7 {[%emt 0:0:25]} 18. Qc2 {[%emt 0:0:20]} Rab8 {[%emt 0:0:10]} 19. h4 {[%emt 0:0:16]} h5 {[%emt 0:0:4]} 20. Bg5 {[%emt 0:0:1]} Ne5 {[%emt 0:0:5]} 21. Nxe5 {[%emt 0:0:12]} Bxe5 {[%emt 0:0:2]} 22. Bd2 {[%emt 0:0:13]} Qd7 {[%emt 0:0:31]} 23. Qd3 {[%emt 0:0:2]} e6 {[%emt 0:0:9]} 24. Rb1 {[%emt 0:0:8]} Qc8 {[%emt 0:0:14]} 25. Qc4 {[%emt 0:0:7]} exd5 {[%emt 0:0:4]} 26. Qxd5 {[%emt 0:1:2]} c4 $1 {[%emt 0:0:8]} 27. Rc1 {[%emt 0:0:14]} (27. Qxc4 $2 Qxc4 28. bxc4 Rxb1 $19 )(27. Ba5 $1 $16 )c3 $1 $11 {[%emt 0:0:24]} 28. Be3 {[%emt 0:0:1]} Rc7 $2 {[%emt 0:0:8]} (28... Rb4 $1 $11 )29. a5 $18 {[%emt 0:0:0]} Qa6 {[%emt 0:0:4] [#]} 30. Rc2 $2 {[%emt 0:0:14]} ({Only move:} 30. Bb6 $1 $18 {[%cal Rb6c7]} Rxb6 31. axb6 Qxb6 32. Qa5 )Rbb7 $2 {[%emt 0:0:18] [#]} (30... Rb4 $11 {and Black has nothing to worry.} )31. Bb6 $1 $18 {[%emt 0:0:2]} Rc8 {[%emt 0:0:1]} 32. Ra4 {[%emt 0:0:1]} Rxb6 {[%emt 0:0:20]} (32... Rbb8 {was called for.} 33. Rc4 Rxc4 34. Qxc4 Qxc4 35. bxc4 f5 36. exf5 gxf5 )33. axb6 $18 {[%emt 0:0:1]} Qxb6 {[%emt 0:0:1]} 34. Rc4 {[%emt 0:0:6]} Rb8 {[%emt 0:0:4]} 35. R2xc3 $2 {[%emt 0:0:4]} (35. b4 Qa7 36. f4 Bf6 $18 )(35. Ra2 $18 )Bxc3 $16 {[%emt 0:0:2]} 36. Rxc3 {[%emt 0:0:0]} Re8 {[%emt 0:0:5]} (36... Kg7 $142 37. Rf3 Rb7 )37. Rc6 {[%emt 0:0:23]} Qb4 {[%emt 0:0:2]} 38. Rxd6 {[%emt 0:0:1]} ({Much weaker is} 38. Qxd6 $6 Qxe4+ 39. Kh2 Qf3 $11 )({Much worse is} 38. e5 $6 Rxe5 39. Qxd6 Qe4+ 40. Kh2 Rf5 41. Qd8+ (41. Rc8+ Kh7 $11 )Kg7 $11 )Qxe4+ {[%emt 0:0:1]} 39. Qxe4 {[%emt 0:0:0]} Rxe4 {[%emt 0:0:2]} 40. Kf3 {[%emt 0:0:4]} Re1 {[%emt 0:0:2]} (40... Rb4 $142 )41. b4 $16 {[%emt 0:0:3]} Kg7 {[%emt 0:0:3]} (41... Kf8 $16 42. Rd4 f6 )42. b5 $18 {[%emt 0:0:1]} Rb1 {[%emt 0:0:1]} 43. Rd5 {[%emt 0:0:5]} (43. Rb6 $18 {has better winning chances.} )Rb2 $2 {[%emt 0:0:4][%mdl 8192]} (43... Kf6 $16 {was worth a try.} )44. Ke3 {[%emt 0:0:0]} Kf6 {[%emt 0:0:1]} 45. f4 {[%emt 0:0:3]} Ke6 {[%emt 0:0:1]} 46. Re5+ {[%emt 0:0:1]} Kd6 {[%emt 0:0:4]} 47. Kd4 {[%emt 0:0:1]} Rb3 {[%emt 0:0:3]} 48. Rg5 {[%emt 0:0:9]} Rb4+ {[%emt 0:0:3]} 49. Kc3 {[%emt 0:0:1]} (49. Kd3 $18 )Rb1 $16 {[%emt 0:0:1]} 50. Kc4 {[%emt 0:0:0]} Rc1+ {[%emt 0:0:2]} 51. Kb4 {[%emt 0:0:1]} Ra1 $2 {[%emt 0:0:1]} (51... Rb1+ $16 {keeps fighting.} 52. Ka5 f6 53. Rxg6 Kc5 )52. Re5 {[%emt 0:0:4]} Rg1 {[%emt 0:0:3]} (52... Rb1+ $142 53. Ka5 Rb3 )53. Re3 $18 {[%emt 0:0:1]} Kc7 {[%emt 0:0:2]} 54. Kc5 {[%emt 0:0:5]} Rc1+ {[%emt 0:0:2]} 55. Kd5 {[%emt 0:0:1]} Kd7 {[%emt 0:0:2]} 56. Rb3 {[%emt 0:0:3]} Kc7 {[%emt 0:0:3]} (56... Rd1+ $142 57. Ke5 Rd6 )57. Ke5 $18 {[%emt 0:0:2]} Rc5+ {[%emt 0:0:2]} 58. Kf6 {[%emt 0:0:2]} Rf5+ {[%emt 0:0:2]} 59. Kg7 {[%emt 0:0:0]} Kb6 {[%emt 0:0:1]} 60. Rb2 {[%emt 0:0:1]} Kb7 {[%emt 0:0:4]} 61. b6 {[%emt 0:0:0]} Kb8 {[%emt 0:0:2]} 62. b7 {[%emt 0:0:0]} 1-0